[Event "26th OIBM 2023"]
[Site "Gmund am Tegernsee"]
[Date "2023.11.04"]
[Round "8.43"]
[White "Wyss, Jonas"]
[Black "Roettig, Hans-Peter"]
[Result "1-0"]
[ECO "B23"]
[WhiteElo "2265"]
[BlackElo "1995"]
[Annotator "ChessBase"]
[PlyCount "113"]
[EventDate "2023.10.04"]
[EventType "swiss"]
[EventCountry "GER"]
[SourceTitle "playchess.com"]
[Source "ChessBase"]
[SourceQuality "1"]
[TimeControl "40/5400+30:1800+30"]

1. e4 {[%emt 0:00:03]} c5 {[%emt 0:00:08]} 2. Nc3 {[%emt 0:00:07]} Nc6 {[%emt 0:00:11]} 3. Bb5 {[%emt 0:00:12]} Nd4 {[%emt 0:00:17]} 4. Nf3 {[%emt 0:00:10]} g6 {[%emt 0:00:54]} 5. Bc4 {[%emt 0:03:20]} Bg7 {[%emt 0:13:22]} 6. Nxd4 {[%emt 0:02:46]} cxd4 {[%emt 0:00:17]} 7. Qf3 {[%emt 0:00:43]} Nf6 {[%emt 0:05:42]} 8. Nb5 {[%emt 0:06:07]} d5 {[%emt 0:09:36]} 9. exd5 {[%emt 0:12:48]} O-O {[%emt 0:05:29]} 10. Nxd4 {[%emt 0:09:37]} Ng4 {[%emt 0:14:00]} 11. c3 {[%emt 0:09:35]} Qc7 {[%emt 0:23:20]} 12. d3 {[%emt 0:02:30]} Ne5 {[%emt 0:07:17]} 13. Qg3 {[%emt 0:04:42]} Qb6 {[%emt 0:01:30]} 14. O-O {[%emt 0:07:58]} Nxc4 {[%emt 0:00:13]} 15. dxc4 {[%emt 0:00:08]} Bd7 {[%emt 0:02:08]} 16. b3 {[%emt 0:03:18]} Bxd4 {[%emt 0:01:16]} 17. cxd4 {[%emt 0:00:08]} Qxd4 {[%emt 0:00:13]} 18. Be3 {[%emt 0:05:32]} Qg7 {[%emt 0:02:10]} 19. Qc7 {[%emt 0:01:31]} Bf5 {[%emt 0:00:37]} 20. Qxb7 {[%emt 0:02:11]} e5 {[%emt 0:00:40]} 21. Rad1 {[%emt 0:03:03]} a5 {[%emt 0:00:35]} 22. d6 {[%emt 0:01:49]} Rab8 {[%emt 0:00:35]} 23. Qe7 {[%emt 0:01:19]} Rfd8 {[%emt 0:01:56]} 24. Bg5 {[%emt 0:04:59]} Rd7 {[%emt 0:00:33]} 25. Qf6 {[%emt 0:00:08]} a4 {[%emt 0:01:37]} 26. c5 {[%emt 0:01:12]} Be4 {[%emt 0:00:22]} 27. Rfe1 {[%emt 0:00:33]} Bc6 {[%emt 0:00:38]} 28. Rxe5 {[%emt 0:00:31]} axb3 {[%emt 0:00:16]} 29. axb3 {[%emt 0:00:07]} h6 {[%emt 0:00:10]} 30. Bh4 {[%emt 0:08:23]} Rxb3 {[%emt 0:01:45]} 31. Rde1 {[%emt 0:00:39]} Kh7 {[%emt 0:03:09]} 32. h3 {[%emt 0:03:03]} g5 {[%emt 0:01:45]} 33. Qxg7+ {[%emt 0:00:06]} Kxg7 {[%emt 0:00:04]} 34. Bg3 {[%emt 0:00:14]} Kg6 {[%emt 0:01:15]} 35. Re7 {[%emt 0:01:46]} Rd3 {[%emt 0:01:56]} 36. Rxd7 {[%emt 0:01:47]} Bxd7 {[%emt 0:00:05]} 37. Re7 {[%emt 0:00:09]} Rd1+ {[%emt 0:00:16]} 38. Kh2 {[%emt 0:00:06]} Bb5 {[%emt 0:00:41]} 39. Rb7 {[%emt 0:01:07]} Ba4 {[%emt 0:00:17]} 40. Rb4 {[%emt 0:00:49]} Bd7 {[%emt 0:00:10]} 41. Rb6 {[%emt 0:31:57]} Rc1 {[%emt 0:03:26]} 42. Rb7 {[%emt 0:00:00]} Ba4 {[%emt 0:00:25]} 43. d7 {[%emt 0:00:00]} Bxd7 {[%emt 0:00:40]} 44. Rxd7 {[%emt 0:00:00]} Rxc5 {[%emt 0:00:04]} 45. Bc7 {[%emt 0:00:00]} Rc2 {[%emt 0:00:49]} 46. Rd6+ {[%emt 0:00:00]} Kg7 {[%emt 0:01:17]} 47. Bb6 {[%emt 0:00:00]} Ra2 {[%emt 0:00:35]} 48. Bd4+ {[%emt 0:00:00]} Kh7 {[%emt 0:00:44]} 49. g4 {[%emt 0:00:00]} Rc2 {[%emt 0:00:24]} 50. Rd8 {[%emt 0:00:00]} Rd2 {[%emt 0:01:23]} 51. Kg2 {[%emt 0:00:00]} Rd3 {[%emt 0:01:05]} 52. Rh8+ {[%emt 0:00:00]} Kg6 {[%emt 0:00:04]} 53. Rg8+ {[%emt 0:00:00]} Kh7 {[%emt 0:00:07]} 54. Rg7+ {[%emt 0:00:00]} Kh8 {[%emt 0:00:05]} 55. Be5 {[%emt 0:00:00]} f6 {[%emt 0:00:14]} 56. Bxf6 {[%emt 0:00:00]} Rd6 {[%emt 0:00:20]} 57. Be5 {[%emt 0:00:00]} 1-0

[Event "26th OIBM 2023"]
[Site "Gmund am Tegernsee"]
[Date "2023.11.04"]
[Round "8.44"]
[White "Czap, Bernard"]
[Black "Weitzer, Steffen"]
[Result "0-1"]
[ECO "A10"]
[WhiteElo "2028"]
[BlackElo "2256"]
[Annotator "ChessBase"]
[PlyCount "78"]
[EventDate "2023.10.04"]
[EventType "swiss"]
[EventCountry "GER"]
[SourceTitle "playchess.com"]
[Source "ChessBase"]
[SourceQuality "1"]
[TimeControl "40/5400+30:1800+30"]

1. c4 {[%emt 0:00:02]} d6 {[%emt 0:01:28]} 2. g3 {[%emt 0:00:37]} c5 {[%emt 0:00:53]} 3. Bg2 {[%emt 0:00:08]} e5 {[%emt 0:00:33]} 4. Nc3 {[%emt 0:01:16]} g6 {[%emt 0:01:34]} 5. a3 {[%emt 0:03:46]} Nc6 {[%emt 0:00:50]} 6. Rb1 {[%emt 0:00:56]} Bg7 {[%emt 0:03:27]} 7. b4 {[%emt 0:00:36]} Nge7 {[%emt 0:03:19]} 8. Nf3 {[%emt 0:06:13]} O-O {[%emt 0:01:13]} 9. O-O {[%emt 0:00:40]} f5 {[%emt 0:02:28]} 10. Nd5 {[%emt 0:07:46]} h6 {[%emt 0:12:42]} 11. d3 {[%emt 0:03:04]} cxb4 {[%emt 0:03:52]} 12. Nxe7+ {[%emt 0:02:50]} Qxe7 {[%emt 0:06:01]} 13. axb4 {[%emt 0:00:20]} g5 {[%emt 0:01:03]} 14. b5 {[%emt 0:00:48]} Nd8 {[%emt 0:01:16]} 15. Ba3 {[%emt 0:01:06]} Ne6 {[%emt 0:02:14]} 16. Nd2 {[%emt 0:14:03]} Nc5 {[%emt 0:05:45]} 17. Nb3 {[%emt 0:01:30]} Be6 {[%emt 0:01:31]} 18. Na5 {[%emt 0:06:35]} Rab8 {[%emt 0:02:23]} 19. Qd2 {[%emt 0:11:03]} f4 {[%emt 0:05:53]} 20. d4 {[%emt 0:04:25]} exd4 {[%emt 0:01:31]} 21. Bb2 {[%emt 0:00:45]} Qc7 {[%emt 0:03:37]} 22. Bd5 {[%emt 0:06:23]} Bxd5 {[%emt 0:02:54]} 23. cxd5 {[%emt 0:00:08]} Ne4 {[%emt 0:00:59]} 24. Qb4 {[%emt 0:04:45]} Nc3 {[%emt 0:05:51]} 25. Bxc3 {[%emt 0:01:25]} dxc3 {[%emt 0:00:08]} 26. Nc4 {[%emt 0:02:06]} Rbd8 {[%emt 0:05:02]} 27. b6 {[%emt 0:01:38]} axb6 {[%emt 0:00:56]} 28. Nxb6 {[%emt 0:00:07]} Rfe8 {[%emt 0:01:36]} 29. gxf4 {[%emt 0:01:26]} gxf4 {[%emt 0:00:39]} 30. Qxf4 {[%emt 0:00:20]} Rxe2 {[%emt 0:02:23]} 31. Nc4 {[%emt 0:03:01]} Qd7 {[%emt 0:13:15]} 32. Rb6 {[%emt 0:06:01]} Rf8 {[%emt 0:03:08]} 33. Qg3 {[%emt 0:01:39]} c2 {[%emt 0:01:26]} 34. Rxd6 {[%emt 0:07:03]} Qf7 {[%emt 0:02:15]} 35. Ne3 {[%emt 0:02:58]} Rxf2 {[%emt 0:01:34]} 36. Rc1 {[%emt 0:00:18]} Rf3 {[%emt 0:00:44]} 37. Qe1 {[%emt 0:00:20]} Bd4 {[%emt 0:00:32]} 38. Re6 {[%emt 0:00:03]} Rxe3 {[%emt 0:00:36]} 39. Rxe3 {[%emt 0:00:11]} Qf3 {[%emt 0:00:17]} 0-1

[Event "26th OIBM 2023"]
[Site "Gmund am Tegernsee"]
[Date "2023.11.05"]
[Round "9.1"]
[White "Golubka, Petro"]
[Black "Lagarde, Maxime"]
[Result "0-1"]
[ECO "C01"]
[WhiteElo "2434"]
[BlackElo "2626"]
[Annotator "TA"]
[PlyCount "142"]
[EventDate "2023.10.04"]
[EventType "swiss"]
[EventCountry "GER"]
[SourceTitle "playchess.com"]
[Source "ChessBase"]
[SourceQuality "1"]
[TimeControl "40/5400+30:1800+30"]

{[%evp 9,142,21,16,7,3,6,15,7,17,0,8,-10,15,22,13,15,20,10,46,0,0,0,0,0,-16,-17,-19,-15,-18,-24,-20,-15,-15,-10,-17,-14,-12,-12,-16,-18,-18,-24,-23,-21,-16,-30,-15,-39,-40,-42,-38,-83,-77,-173,-165,-241,-237,-246,-250,-243,-231,-340,-307,-387,-390,-528,-503,-535,-516,-497,-505,-482,-415,-632,-550,-585,-629,-607,-560,-537,-509,-566,-487,-491,-657,-863,-772,-810,-827,-739,-636,-636,-629,-623,-632,-604,-592,-506,-377,-309,0,0,0,0,0,-421,-397,-357,-18,-179,-168,-250,-59,-441,-441,-429,-406,-477,-7,-9,-16,-252,-241,-156,-62,-12834,-12835,-12835,-12835,-12844,-12844,-12845,-12845,-12846,-12847]} 1. e4 {[%emt 0:00:25]} e6 {[%emt 0:03:23]} 2. d4 {[%emt 0:00:22]} d5 {[%emt 0:00:02]} 3. exd5 {[%emt 0:02:37]} exd5 {[%emt 0:00:09]} 4. Nf3 {[%emt 0:00:15]} Nc6 {[%emt 0:00:13]} 5. Nc3 {[%emt 0:01:22]} Bb4 {[%emt 0:00:54]} 6. Bb5 {[%emt 0:00:45] C01: French: Exchange Variation.} Nge7 {[%emt 0:00:24]} 7. h3 {[%emt 0:01:05]} a6 {[%emt 0:07:41] [#]} 8. Bd3 $146 {[%emt 0:01:29] The position is equal.} ({Predecessor:} 8. Ba4 b5 9. Bb3 Bxc3+ 10. bxc3 Na5 11. Ba3 O-O 12. O-O c6 13. Re1 Re8 14. Qe2 {½-½ Efentakis,N (1791)-Tepelenis,N (2273) Athens Smaok op 4th 2010 (3)}) 8... f6 {[%emt 0:02:33]} 9. Bd2 {[%emt 0:02:52]} Bd6 {[%emt 0:02:03]} 10. Ne2 {[%emt 0:01:32]} Nb4 {[%emt 0:04:40]} 11. Bxb4 {[%emt 0:00:41]} Bxb4+ {[%emt 0:00:03]} 12. c3 {[%emt 0:00:08] Qa4+ is the strong threat.} Bd6 {[%emt 0:00:03]} 13. Qc2 {[%emt 0:00:36]} Kf7 {[%emt 0:01:47]} 14. h4 {[%emt 0:14:06]} (14. Bxh7 $2 g6 15. Bxg6+ Nxg6 $19) (14. O-O-O $14 {feels stronger.}) 14... Qd7 {[%emt 0:05:33]} 15. h5 {[%emt 0:08:32][%cal Oh1h4]} (15. Bxh7 $2 Qg4 16. Kf1 Rxh7 17. Qxh7 Bf5 $19) 15... Qg4 {[%emt 0:01:59]} 16. Kf1 {[%emt 0:00:06]} Bf5 {[%emt 0:04:52]} 17. Bxf5 {[%emt 0:04:34]} (17. c4 {feels hotter.} Bxd3 18. Qxd3 dxc4 19. Qxc4+ Qe6 20. Qc2) 17... Qxf5 {[%emt 0:02:27]} 18. Qxf5 {[%emt 0:09:19]} Nxf5 {[%emt 0:00:07]} 19. Re1 {[%emt 0:04:11]} g5 {[%emt 0:01:27]} 20. hxg6+ {[%emt 0:01:05]} hxg6 {[%emt 0:00:02]} 21. Rxh8 {[%emt 0:00:21]} Rxh8 {[%emt 0:00:03]} 22. g3 {[%emt 0:02:31]} g5 {[%emt 0:00:57]} 23. Kg2 {[%emt 0:00:28]} Re8 {[%emt 0:01:01]} 24. Kf1 {[%emt 0:00:42]} a5 {[%emt 0:02:23]} 25. a4 {[%emt 0:00:09]} b6 {[%emt 0:02:46]} 26. Nc1 {[%emt 0:00:35]} Rh8 {[%emt 0:03:09]} 27. Kg2 {[%emt 0:00:30]} c5 {[%emt 0:00:28]} 28. Nb3 {[%emt 0:02:08]} Rb8 {[%emt 0:04:25]} 29. Ra1 {[%emt 0:03:02]} Ke6 {[%emt 0:06:57]} 30. Nfd2 {[%emt 0:01:50]} cxd4 {[%emt 0:02:40] Black is more active.} 31. Re1+ {[%emt 0:02:28]} (31. Nxd4+ $17 {is a better defense.} Nxd4 32. cxd4) 31... Kd7 $19 {[%emt 0:00:29]} 32. c4 {[%emt 0:00:06]} (32. Nxd4 $142 Nxd4 33. cxd4) 32... Bb4 {[%emt 0:16:48] Hoping for ...dxc4.} 33. cxd5 {[%emt 0:01:17]} b5 {[%emt 0:04:42]} 34. Ra1 {[%emt 0:00:33]} Kd6 $1 {[%emt 0:04:08]} ({And not} 34... bxa4 35. Rxa4 Kd6 36. Ne4+ Ke5 37. Nec5 $17) 35. Ne4+ {[%emt 0:02:39]} (35. Kf1 $142) 35... Kxd5 {[%emt 0:02:30]} 36. Nxf6+ {[%emt 0:00:08]} Kc4 {[%emt 0:00:05]} 37. Nc5 {[%emt 0:02:14]} Bxc5 {[%emt 0:04:19]} 38. Rc1+ {[%emt 0:00:07]} Kb4 {[%emt 0:01:08]} 39. Nd5+ {[%emt 0:00:13]} Kxa4 {[%emt 0:03:26]} 40. Rxc5 {[%emt 0:00:08][%mdl 4096] Endgame KRN-KRN} Kb3 {[%emt 0:01:26]} 41. Nc7 {[%emt 0:31:30]} (41. Nf6 $142 Nh6 42. Nd7) 41... Nd6 {[%emt 0:33:29]} 42. Rd5 {[%emt 0:00:25]} Rb6 {[%emt 0:01:10]} 43. Rxd4 {[%emt 0:00:13]} Kxb2 {[%emt 0:00:28]} 44. Nd5 {[%emt 0:00:22]} Ra6 {[%emt 0:00:46]} 45. f4 {[%emt 0:00:29]} gxf4 {[%emt 0:00:00]} 46. g4 {[%emt 0:00:00]} a4 {[%emt 0:00:00]} 47. Nb4 {[%emt 0:00:00]} Kc3 {[%emt 0:00:00]} 48. Rxf4 {[%emt 0:00:00]} Ra7 {[%emt 0:00:00]} 49. Nd5+ {[%emt 0:00:00]} Kc2 {[%emt 0:00:00]} 50. Rf6 {[%emt 0:00:00]} Nc4 {[%emt 0:00:00] And now ...a3 would win.} 51. Rf2+ {[%emt 0:00:00]} Kd3 {[%emt 0:00:00]} 52. Nb4+ {[%emt 0:00:00]} Kc3 {[%emt 0:00:00]} 53. Na2+ {[%emt 0:00:00]} Kd4 {[%emt 0:00:00]} 54. Rf4+ {[%emt 0:00:00]} Ke3 $2 {[%emt 0:00:00]} (54... Kc5 $19 55. Rf5+ Kb6) 55. Rf3+ $11 {[%emt 0:00:00]} Kd2 {[%emt 0:00:00]} (55... Ke4 $5 56. Nc3+ $8 Ke5 57. Nxb5 (57. Rf5+ Ke6 $15) 57... Rb7 $11) 56. Rf2+ $1 {[%emt 0:00:00]} Kd3 $2 {[%emt 0:00:00][%mdl 8192]} (56... Ke1 $11 57. Nc3 Re7) 57. Nb4+ $19 {[%emt 0:00:00]} Ke4 {[%emt 0:00:00]} 58. Kg3 {[%emt 0:00:00]} a3 $2 {[%emt 0:00:00]} (58... Rg7 $19 59. Rf4+ Ke3) 59. Rf4+ $2 {[%emt 0:00:00]} (59. Re2+ $1 $11 {and White stays safe.} Kd4 60. Nc6+ Kd3 61. Nxa7) 59... Ke3 {[%emt 0:00:00]} 60. Rf5 {[%emt 0:00:00] Inhibits Ne5.} Nd6 {[%emt 0:02:24]} ({Inferior is} 60... a2 61. Nxa2 Nd6 62. Rd5 $15) (60... Rb7 $1 $19 {Strongly threatening ...Kd2.} 61. Rf3+ Ke4 62. Rf4+ Ke5) 61. Rf3+ $2 {[%emt 0:00:56][%mdl 8192]} (61. Rd5 $1 $15) 61... Ke2 {[%emt 0:00:46]} 62. Rf2+ {[%emt 0:03:59]} Kd1 $1 {[%emt 0:01:17] Threatens to win with ...Ne4+.} 63. Ra2 {[%emt 0:01:52] [#]} Ne4+ $2 {[%emt 0:01:39]} (63... Kc1 $1 $19 64. Rg2 Kb1) 64. Kf3 $1 $11 {[%emt 0:00:18]} Nc3 {[%emt 0:01:05]} 65. Ra1+ $2 {[%emt 0:00:53]} (65. Rh2 $1 $11) 65... Kd2 $19 {[%emt 0:00:05] aiming for ...Ra4.} 66. g5 {[%emt 0:00:09] [#]} a2 {[%emt 0:02:02]} ({Better is} 66... Rf7+ $1 $17 67. Kg4 Ne2) 67. Nxa2 $2 {[%emt 0:07:53][%mdl 8192]} Nxa2 {[%emt 0:01:14] Black is clearly winning.} 68. g6 {[%emt 0:00:07]} b4 {[%emt 0:00:37][%cal Bb5b4,Bb4b3,Bb3b2][%mdl 32]} 69. Kf4 {[%emt 0:00:17]} b3 {[%emt 0:01:27]} 70. Rg1 {[%emt 0:03:47]} b2 {[%emt 0:00:53]} 71. Kg5 {[%emt 0:01:40]} Nc1 {[%emt 0:00:21] Weighted Error Value: White=0.29 (precise) /Black=0.29 (precise)} 0-1

[Event "26th OIBM 2023"]
[Site "Gmund am Tegernsee"]
[Date "2023.11.05"]
[Round "9.2"]
[White "Gopal G.N."]
[Black "Vetoshko, Volodymyr"]
[Result "1/2-1/2"]
[ECO "B42"]
[WhiteElo "2573"]
[BlackElo "2499"]
[Annotator "TA"]
[PlyCount "77"]
[EventDate "2023.10.04"]
[EventType "swiss"]
[EventCountry "GER"]
[SourceTitle "playchess.com"]
[Source "ChessBase"]
[SourceQuality "1"]
[TimeControl "40/5400+30:1800+30"]

{[%evp 12,77,37,38,27,30,39,28,39,17,33,24,25,24,14,8,17,20,40,9,41,47,69,62,34,56,126,115,119,104,122,98,114,95,91,81,161,143,134,135,148,113,116,84,122,131,133,93,93,92,89,100,100,93,80,75,75,8,8,0,0,0,0,0,0,0,0,0]} 1. e4 {[%emt 0:00:03]} c5 {[%emt 0:00:07]} 2. Nf3 {[%emt 0:00:04]} e6 {[%emt 0:00:06]} 3. d4 {[%emt 0:00:05]} cxd4 {[%emt 0:00:04]} 4. Nxd4 {[%emt 0:00:03]} a6 {[%emt 0:00:14]} 5. Bd3 {[%emt 0:00:23]} Bc5 {[%emt 0:00:08]} 6. Nb3 {[%emt 0:00:14]} Ba7 {[%emt 0:00:07]} 7. Qe2 $1 {[%emt 0:00:51] 7.Qe2 scores better than 7.0-0.} Ne7 {[%emt 0:00:57] B42: Sicilian: Kan Variation: 5 Bd3.} 8. Be3 {[%emt 0:01:54]} O-O {[%emt 0:00:37]} 9. Nc3 {[%emt 0:02:49]} b5 {[%emt 0:01:54] White has an edge.} 10. f4 {[%emt 0:13:26]} (10. e5 $5 {[%cal Re3g5]}) 10... Nbc6 {[%emt 0:15:00]} 11. Bxa7 {[%emt 0:08:25]} Rxa7 {[%emt 0:00:15]} 12. O-O-O {[%emt 0:00:07]} b4 {[%emt 0:04:44]} 13. Na4 {[%emt 0:00:38]} d6 {[%emt 0:00:17]} 14. Qe3 {[%emt 0:01:34] [#]} Bd7 $146 {[%emt 0:04:28]} ({Predecessor:} 14... Qc7 15. h4 Bd7 16. h5 Rb8 17. h6 g6 18. Qg3 f6 19. e5 dxe5 20. f5 e4 21. Qxc7 Rxc7 22. fxe6 exd3 23. exd7 Rxd7 {1-0 Kramnik,V (2753)-Kamsky,G (2665) Titled Tuesday intern op 11th Apr Late blitz 2023 (10)}) 15. h4 {[%emt 0:01:50]} Nc8 {[%emt 0:01:19]} (15... Qc7 $5 {[%cal Rf8b8]}) 16. e5 {[%emt 0:12:15]} Nxe5 {[%emt 0:35:44][%mdl 64] [#] Discovered Attack} 17. fxe5 {[%emt 0:00:30][%cal Oe3e4]} Bxa4 {[%emt 0:00:03]} 18. exd6 $40 {[%emt 0:06:20][%mdl 128] White mounts an attack.} Bxb3 {[%emt 0:01:50]} ({Black should play} 18... Bb5 $14) 19. axb3 $16 {[%emt 0:00:06]} Rd7 {[%emt 0:03:39] Black is weak on the light squares} 20. Qe4 {[%emt 0:04:45][%csl Gd3][%cal Re4h7] White is much more active.} (20. Bxa6 Qa5 21. Bxc8 Rxc8 $19) 20... g6 {[%emt 0:00:11]} 21. Qxb4 {[%emt 0:04:07]} ({Worse is} 21. Bxa6 Qb6 22. Bxc8 Rxc8 $17) 21... Rxd6 {[%emt 0:02:18]} 22. Qf4 {[%emt 0:08:03]} Qe7 {[%emt 0:10:34]} 23. h5 {[%emt 0:06:00]} Nb6 {[%emt 0:02:37]} (23... g5 $16 {keeps fighting.} 24. Qe3 Rfd8) 24. hxg6 {[%emt 0:02:32]} (24. Bxa6 $2 Nd5 25. Rxd5 Rxd5 26. hxg6 fxg6 $19) 24... fxg6 {[%emt 0:00:11]} 25. Qg3 {[%emt 0:04:42][%cal Oh1h7] Rxh7! is the strong threat.} e5 {[%emt 0:04:16]} 26. Be4 {[%emt 0:02:33] Dodges e4} Rfd8 {[%emt 0:06:13]} 27. Rd3 {[%emt 0:08:56]} Rxd3 {[%emt 0:01:10]} 28. Bxd3 {[%emt 0:00:05]} Rd6 {[%emt 0:04:00]} 29. Bxa6 {[%emt 0:06:21]} Qa7 {[%emt 0:00:05]} 30. Qxe5 {[%emt 0:02:21]} Qxa6 {[%emt 0:00:02][%cal Ra6a1]} 31. Qe8+ {[%emt 0:00:33]} Kg7 {[%emt 0:00:01][%cal Ra6a1]} 32. Qe7+ {[%emt 0:00:04]} Kg8 {[%emt 0:00:01][%cal Ra6a1]} 33. Qxh7+ {[%emt 0:00:59]} Kf8 {[%emt 0:00:02][%cal Ra6a1] [#]} 34. Kb1 {[%emt 0:01:15] Against Qa1+} (34. Qh8+ $1 $16 Kf7 35. Rh7+ Ke6 36. Qg8+ Kf5 37. Qf8+ Ke5 38. Re7+ Re6 39. Qh8+ (39. Qg7+ Kd6 $16) 39... Kd5 40. c4+ (40. Qd8+ Rd6 $14) 40... Nxc4 41. Rxe6 Qxe6 42. bxc4+ Kxc4 43. Qc3+ Kb5 44. Qd3+ Kb6 45. Qd4+ Ka6 46. Kd2) 34... Nd7 $11 {[%emt 0:01:34] The position is equal.} 35. Re1 {[%emt 0:01:33] Strongly threatening Qh8+.} Re6 {[%emt 0:01:14][%cal Re6e1]} 36. Rd1 {[%emt 0:00:44] Hoping for Qh8+.} Rd6 {[%emt 0:00:17][%cal Rd6d1]} 37. Re1 {[%emt 0:00:57] And now Qh8+ would win.} Re6 {[%emt 0:00:05][%cal Re6e1]} 38. Rh1 {[%emt 0:00:50] Threatening mate with Qh8+.} Ke8 {[%emt 0:01:08]} 39. Rd1 {[%emt 0:00:22] Black defended with fortune.   Weighted Error Value: White=0.11 (very precise) /Black=0.10 (very precise)} 1/2-1/2

[Event "26th OIBM 2023"]
[Site "Gmund am Tegernsee"]
[Date "2023.11.05"]
[Round "9.3"]
[White "Petrov, Nikita"]
[Black "Vogel, Roven"]
[Result "1/2-1/2"]
[ECO "B14"]
[WhiteElo "2551"]
[BlackElo "2471"]
[Annotator "TA"]
[PlyCount "47"]
[EventDate "2023.10.04"]
[EventType "swiss"]
[EventCountry "GER"]
[SourceTitle "playchess.com"]
[Source "ChessBase"]
[SourceQuality "1"]
[TimeControl "40/5400+30:1800+30"]

{[%evp 19,47,0,0,9,0,7,3,0,0,0,0,0,0,0,22,-9,-8,-14,-14,-9,-14,-12,-3,-12,54,52,36,41,41,-1]} 1. c4 {[%emt 0:00:03]} c6 {[%emt 0:00:26]} 2. e4 {[%emt 0:00:44]} d5 {[%emt 0:00:08]} 3. exd5 {[%emt 0:00:10]} cxd5 {[%emt 0:00:06]} 4. d4 {[%emt 0:00:13]} Nf6 {[%emt 0:00:08]} 5. Nc3 {[%emt 0:00:24]} g6 {[%emt 0:01:41]} 6. cxd5 {[%emt 0:01:56]} Nxd5 {[%emt 0:05:34]} 7. Bc4 {[%emt 0:00:08]} Nb6 {[%emt 0:00:26]} 8. Bb3 {[%emt 0:00:23]} Bg7 {[%emt 0:00:15]} 9. Nf3 {[%emt 0:00:45]} O-O {[%emt 0:00:47]} 10. h3 {[%emt 0:00:07]} Nc6 {[%emt 0:01:26][%cal Rc6d4]} 11. d5 {[%emt 0:00:08] B14: Caro-Kann: Panov-Botvinnik Attack with 5...e6 and 5...g6.} Na5 {[%emt 0:00:07]} 12. O-O {[%emt 0:00:20]} Bf5 {[%emt 0:05:11]} 13. Re1 {[%emt 0:03:03] The position is equal.} Re8 {[%emt 0:04:06]} 14. Ne5 {[%emt 0:24:48]} Qd6 {[%emt 0:16:35]} 15. Bf4 {[%emt 0:09:10]} Qb4 {[%emt 0:14:13] [#]} 16. Bh2 $146 {[%emt 0:01:38]} ({Predecessor:} 16. Bd2 Nbc4 17. Nxc4 Nxc4 18. a3 Qc5 19. Bxc4 Qxc4 20. Rc1 Rad8 21. g4 Bd7 22. Bg5 {½-½ Rogemont,A (2266)-Andersen,J (2168) EU-ch WS/M/028 email 2011}) 16... Nd7 {[%emt 0:05:57]} 17. Nxf7 {[%emt 0:25:53]} Kxf7 {[%emt 0:00:25]} 18. g4 $1 {[%emt 0:00:04]} Nxb3 {[%emt 0:02:20]} 19. axb3 {[%emt 0:00:24] [#] Ra4 would be deadly.} Bxc3 {[%emt 0:02:13]} 20. bxc3 {[%emt 0:01:40]} Qxc3 {[%emt 0:00:21]} 21. gxf5 {[%emt 0:02:48] Strongly threatening Re3.} (21. Re3 $5 {[%cal Re3c3]} Qc2 22. gxf5 Qxd1+ 23. Rxd1 $11) 21... Nf6 {[%emt 0:04:42]} (21... Qxh3 $11 22. fxg6+ hxg6) 22. fxg6+ $14 {[%emt 0:03:57] White is slightly better.} ({Of course not} 22. Qe2 Qxh3 23. fxg6+ Kxg6 $15) 22... hxg6 {[%emt 0:00:02]} 23. Re3 {[%emt 0:00:08]} Qc5 {[%emt 0:00:10]} 24. Re5 {[%emt 0:01:44] Weighted Error Value: White=0.03 (flawless) /Black=0.12 (very precise)} 1/2-1/2

[Event "26th OIBM 2023"]
[Site "Gmund am Tegernsee"]
[Date "2023.11.05"]
[Round "9.4"]
[White "Van Foreest, Lucas"]
[Black "Schneider, Ilja"]
[Result "1/2-1/2"]
[ECO "A11"]
[WhiteElo "2540"]
[BlackElo "2468"]
[Annotator "TA"]
[PlyCount "59"]
[EventDate "2023.10.04"]
[EventType "swiss"]
[EventCountry "GER"]
[SourceTitle "playchess.com"]
[Source "ChessBase"]
[SourceQuality "1"]
[TimeControl "40/5400+30:1800+30"]

{[%evp 9,59,7,16,14,28,16,12,6,32,32,46,49,70,56,74,62,102,108,110,122,108,114,133,50,53,54,62,74,79,73,83,80,83,0,0,0,0,0,0,0,0,0,12,8,14,15,14,15,15,16,12,0]} 1. c4 {[%emt 0:00:10]} Nf6 {[%emt 0:00:28]} 2. g3 {[%emt 0:00:35]} c6 {[%emt 0:00:07]} 3. Nf3 {[%emt 0:00:29][%cal Bg1f3,Bf3e5,Be5c4,Bc4a5][%mdl 32]} d5 {[%emt 0:00:11]} 4. Bg2 {[%emt 0:00:11]} Bg4 {[%emt 0:00:08]} 5. Ne5 {[%emt 0:01:04]} Be6 {[%emt 0:00:07]} 6. d4 {[%emt 0:00:23] A11: English Opening: 1...c6.} dxc4 {[%emt 0:09:50]} 7. O-O {[%emt 0:00:35]} Nbd7 {[%emt 0:07:28]} 8. Qc2 {[%emt 0:01:08]} g6 {[%emt 0:08:17]} 9. Nxc4 {[%emt 0:08:23]} Bg7 {[%emt 0:02:08]} 10. Rd1 {[%emt 0:00:53]} O-O {[%emt 0:02:08]} 11. e4 {[%emt 0:01:46] White is more active.} Nb6 {[%emt 0:02:10]} 12. Na5 {[%emt 0:05:41]} Qc8 {[%emt 0:00:27] [#]} 13. Nd2 $146 {[%emt 0:01:56]} ({Predecessor:} 13. Nc3 Rd8 14. Bf4 Nc4 15. Nxc4 Bxc4 16. Rac1 Be6 17. d5 cxd5 18. Nxd5 Qxc2 19. Rxc2 Nxd5 20. exd5 {½-½ Bai,J (2572)-Acosta,P (2474) Barcelona Sants op 24th 2023 (7)}) 13... Rd8 {[%emt 0:05:25]} 14. Ndb3 {[%emt 0:00:39]} Na4 {[%emt 0:01:33]} 15. Bf4 {[%emt 0:13:33]} Ne8 {[%emt 0:02:06]} 16. Nc1 {[%emt 0:10:16]} (16. Rac1 $16) 16... Nb6 $14 {[%emt 0:04:53]} 17. Ne2 {[%emt 0:05:09]} Nd6 {[%emt 0:05:56]} 18. Rac1 {[%emt 0:00:36]} f5 {[%emt 0:03:08]} 19. d5 {[%emt 0:14:42]} cxd5 {[%emt 0:00:48] [#]} 20. Qb1 {[%emt 0:08:41]} ({Don't play} 20. exd5 $6 Qxc2 21. Rxc2 Ne4 $11) 20... Qd7 {[%emt 0:01:59][%cal Rf5e4] [#]} 21. exd5 {[%emt 0:00:09]} (21. e5 $1 $16 {[%cal Re5d6]} Nb5 22. Qd3) 21... Bf7 $11 {[%emt 0:00:16] aiming for ...Qb5. The position is equal.} 22. Bxd6 {[%emt 0:05:26]} exd6 {[%emt 0:41:57]} 23. Nf4 {[%emt 0:19:35]} Bh6 {[%emt 0:00:30]} 24. Ne6 {[%emt 0:00:30] Rc7 is the strong threat.} Bxc1 {[%emt 0:00:30]} ({Don't do} 24... Bxe6 25. dxe6 Qxe6 26. Rc7 $14) 25. Nxd8 {[%emt 0:00:30]} Rxd8 {[%emt 0:00:30]} 26. Qxc1 {[%emt 0:00:30]} Rc8 {[%emt 0:00:30]} 27. Qd2 {[%emt 0:00:30]} Nc4 {[%emt 0:00:30]} 28. Nxc4 {[%emt 0:00:30]} Rxc4 {[%emt 0:00:30]} 29. b3 {[%emt 0:00:30]} Rc5 {[%emt 0:00:30]} 30. Bf3 {[%emt 0:00:30] Weighted Error Value: White=0.08 (flawless) /Black=0.09 (flawless)} 1/2-1/2